fUSD/lending_fUSD_20240527
["ID","MTS","AMOUNT","RATE_DAILY","PERIOD"]
[328074184,1716837043805,-500.0,0.00030136,6]
[328074185,1716837043815,-500.0,0.00030136,6]
[328074186,1716837043825,-500.0,0.00030136,6]
[328074187,1716837043834,-500.0,0.00030136,6]
[328074188,1716837043844,-501.812914,0.00030136,6]
[328074189,1716837043853,-500.0,0.00030136,6]
[328074190,1716837043863,-500.0,0.00030136,6]
[328074191,1716837043873,-499.15004441,0.00030136,6]
[328074192,1716837043882,-500.0,0.00030136,6]
[328074193,1716837043893,-500.0,0.00030136,6]
[328074194,1716837043903,-500.0,0.00030136,6]
[328074195,1716837043913,-500.0,0.00030136,6]
[328074196,1716837043923,-500.0,0.00030136,6]
[328074197,1716837043932,-500.0,0.00030136,6]
[328074198,1716837043942,-500.0,0.00030136,6]
[328074199,1716837043952,-500.0,0.00030136,6]
[328074200,1716837043963,-500.0,0.00030136,6]
[328074201,1716837043972,-500.0,0.00030136,6]
[328074202,1716837043983,-609.58,0.00030136,6]
[328074203,1716837043992,-500.0,0.00030136,6]
[328074204,1716837044001,-500.0,0.00030136,6]
[328074206,1716837044010,-500.0,0.00030136,6]
[328074207,1716837044020,-508.98,0.00030136,6]
[328074209,1716837044029,-539.38748332,0.00030136,6]
[328074211,1716837044039,-500.0,0.00030136,6]
[328074212,1716837044048,-500.0,0.00030136,6]
[328074213,1716837044058,-500.0,0.00030136,6]
[328074214,1716837044067,-374.46,0.00030136,6]
[328074215,1716837044077,-500.0,0.00030136,6]
[328074216,1716837044087,-271.04,0.00030136,6]
[328074217,1716837044096,-500.0,0.00030136,6]
[328074218,1716837044106,-500.0,0.00030136,6]
[328074219,1716837044115,-182.36,0.00030136,6]
[328074220,1716837044125,-500.0,0.00030136,6]
[328074221,1716837044134,-500.0,0.00030136,6]
[328074222,1716837044143,-500.0,0.00030136,6]
[328074223,1716837044153,-500.0,0.00030136,6]
[328074225,1716837044162,-500.0,0.00030136,6]
[328074226,1716837044171,-500.0,0.00030136,6]
[328074228,1716837044180,-464.19965497,0.00030136,6]
[328074230,1716837044190,-500.0,0.00030136,6]
[328074233,1716837044200,-500.0,0.00030136,6]
[328074235,1716837044210,-1009.73905358,0.00030136,6]
[328074236,1716837044220,-500.0,0.00030136,6]
[328074238,1716837044232,-454.64,0.00030136,6]
[328074240,1716837044242,-500.0,0.00030136,6]
[328074241,1716837044252,-500.0,0.00030136,6]
[328074242,1716837044261,-500.0,0.00030136,6]
[328074243,1716837044271,-419.68,0.00030136,6]
[328074244,1716837044281,-500.0,0.00030136,6]
[328074245,1716837044291,-500.0,0.00030136,6]
[328074246,1716837044301,-500.0,0.00030136,6]
[328074247,1716837044310,-500.0,0.00030136,6]
[328074248,1716837044319,-500.0,0.00030136,6]
[328074249,1716837044329,-438.15,0.00030136,6]
[328074250,1716837044338,-500.0,0.00030136,6]
[328074252,1716837044348,-475.16710205,0.00030136,6]
[328074254,1716837044358,-500.0,0.00030136,6]
[328074255,1716837044368,-500.0,0.00030136,6]
[328074256,1716837044378,-276.71,0.00030136,6]
[328074257,1716837044388,-500.0,0.00030136,6]
[328074258,1716837044398,-500.0,0.00030136,6]
[328074259,1716837044408,-496.48,0.00030136,6]
[328074260,1716837044418,-500.0,0.00030136,6]
[328074261,1716837044430,-500.0,0.00030136,6]
[328074262,1716837044440,-500.0,0.00030136,6]
[328074263,1716837044451,-500.0,0.00030136,6]
[328074264,1716837044463,-500.0,0.00030136,6]
[328074265,1716837044474,-500.0,0.00030136,6]
[328074266,1716837044486,-500.0,0.00030136,6]
[328074267,1716837044496,-500.0,0.00030136,6]
[328074268,1716837044507,-500.0,0.00030136,6]
[328074269,1716837044516,-482.24,0.00030136,6]
[328074270,1716837044527,-500.0,0.00030136,5]
[328074271,1716837044538,-500.0,0.00030136,5]
[328074272,1716837044549,-500.0,0.00030136,5]
[328074273,1716837044559,-500.0,0.00030136,5]
[328074274,1716837044569,-2000.0,0.00030136,2]
[328074275,1716837044578,-250.0,0.00030136,6]
[328074276,1716837044589,-250.0,0.00030136,6]
[328074277,1716837044599,-500.0,0.00030136,6]
[328074278,1716837044610,-250.0,0.00030136,6]
[328074279,1716837044620,-500.0,0.00030136,6]
[328074280,1716837044629,-250.0,0.00030136,6]
[328074281,1716837044640,-535.32253109,0.00030136,6]
[328074282,1716837044650,-250.0,0.00030136,6]
[328074283,1716837044660,-250.0,0.00030136,6]
[328074284,1716837044670,-500.0,0.00030136,6]
[328074285,1716837044681,-500.0,0.00030136,6]
[328074286,1716837044691,-500.0,0.00030136,6]
[328074287,1716837044701,-500.0,0.00030136,6]
[328074288,1716837044710,-200.0,0.00030136,2]
[328074289,1716837044721,-500.0,0.00030136,6]
[328074290,1716837044732,-500.0,0.00030136,6]
[328074291,1716837044743,-564.09,0.00030136,6]
[328074292,1716837044754,-500.0,0.00030136,6]
[328074293,1716837044764,-500.0,0.00030136,6]
[328074294,1716837044774,-500.0,0.00030136,6]
[328074295,1716837044784,-500.0,0.00030136,6]
[328074296,1716837044833,-500.0,0.00030136,6]
[328074297,1716837044843,-500.0,0.00030136,6]
[328074298,1716837044852,-500.0,0.00030136,6]
[328074299,1716837044862,-500.0,0.00030136,6]
[328074300,1716837044871,-500.0,0.00030136,6]
[328074301,1716837044880,-500.0,0.00030136,6]
[328074302,1716837044890,-500.0,0.00030136,6]
[328074303,1716837044900,-500.0,0.00030136,6]
[328074304,1716837044909,-500.0,0.00030136,6]
[328074305,1716837044919,-541.55,0.00030136,6]
[328074306,1716837044927,-500.0,0.00030136,6]
[328074307,1716837044936,-500.0,0.00030136,6]
[328074308,1716837044946,-500.0,0.00030136,6]
[328074309,1716837044955,-500.0,0.00030136,6]
[328074310,1716837044964,-500.0,0.00030136,6]
[328074311,1716837044974,-500.0,0.00030136,6]
[328074312,1716837044985,-500.0,0.00030136,6]
[328074313,1716837044994,-500.0,0.00030136,6]
[328074314,1716837045003,-500.0,0.00030136,6]
[328074315,1716837045012,-500.0,0.00030136,6]
[328074316,1716837045022,-500.0,0.00030136,6]
[328074317,1716837045031,-509.31465574,0.00030136,6]
[328074318,1716837045041,-295.03,0.00030136,6]
[328074319,1716837045051,-500.0,0.00030136,6]
[328074320,1716837045060,-223.0,0.00030136,6]
[328074321,1716837045071,-500.0,0.00030136,6]
[328074322,1716837045081,-500.0,0.00030136,6]
[328074323,1716837045092,-500.0,0.00030136,6]
[328074324,1716837045105,-397.7264433,0.00030136,6]
[328074325,1716837045116,-500.0,0.00030136,6]
[328074326,1716837045126,-500.0,0.00030136,6]
[328074327,1716837045136,-500.0,0.00030136,6]
[328074328,1716837045147,-500.0,0.00030136,6]
[328074329,1716837045157,-500.0,0.00030136,6]
[328074330,1716837045167,-500.0,0.00030136,6]
[328074331,1716837045177,-500.0,0.00030136,6]
[328074332,1716837045187,-500.0,0.00030136,6]
[328074333,1716837045198,-500.0,0.00030136,6]
[328074334,1716837045208,-500.0,0.00030136,6]
[328074335,1716837045218,-151.0,0.00030136,7]
[328074336,1716837045230,-151.0,0.00030136,7]
[328074337,1716837045241,-500.0,0.00030136,6]
[328074338,1716837045251,-500.0,0.00030136,6]
[328074339,1716837045261,-500.0,0.00030136,6]
[328074340,1716837045271,-500.0,0.00030136,6]
[328074341,1716837045280,-500.0,0.00030136,6]
[328074342,1716837045290,-500.0,0.00030136,6]
[328074343,1716837045300,-597.98321144,0.00030136,6]
[328074344,1716837045309,-500.0,0.00030136,6]
[328074345,1716837045319,-500.0,0.00030136,6]
[328074346,1716837045328,-500.0,0.00030136,6]
[328074347,1716837045337,-500.0,0.00030136,6]
[328074348,1716837045346,-500.0,0.00030136,6]
[328074349,1716837045355,-500.0,0.00030136,6]
[328074350,1716837045365,-500.0,0.00030136,6]
[328074351,1716837045374,-500.0,0.00030136,6]
[328074352,1716837045384,-500.0,0.00030136,6]
[328074353,1716837045393,-500.0,0.00030136,6]
[328074354,1716837045402,-500.0,0.00030136,6]
[328074355,1716837045411,-151.0,0.00030136,7]
[328074356,1716837045420,-500.0,0.00030136,6]
[328074357,1716837045431,-500.0,0.00030136,6]
[328074358,1716837045442,-157.442059,0.00030136,7]
[328074359,1716837045452,-500.0,0.00030136,6]
[328074360,1716837045462,-637.44,0.00030136,6]
[328074361,1716837045472,-274.92350786,0.00030136,6]
[328074362,1716837045482,-177.74,0.00030136,6]
[328074363,1716837045492,-500.0,0.00030136,6]
[328074364,1716837045501,-500.0,0.00030136,6]
[328074365,1716837045512,-500.0,0.00030136,6]
[328074366,1716837045525,-500.0,0.00030136,6]
[328074367,1716837045537,-500.0,0.00030136,6]
[328074368,1716837045547,-236.43396248,0.00030136,6]
[328074369,1716837045606,-259.23859721,0.00030136,6]
[328074370,1716837045616,-492.70567077,0.00030136,6]
[328074371,1716837045625,-360.74856257,0.00030136,6]
[328074372,1716837045774,-139.25143743,0.00030136,6]
[328074373,1716837045784,-179.74856257,0.00030136,6]
[328074374,1716837045796,-320.25143743,0.00030136,6]
[328074375,1716837045806,-500.0,0.00030136,6]
[328074376,1716837045816,-155.78799266,0.00030136,6]
[328074377,1716837045828,-344.21200734,0.00030136,6]
[328074378,1716837045837,-500.0,0.00030136,6]
[328074379,1716837045847,-500.0,0.00030136,6]
[328074380,1716837045857,-500.0,0.00030136,6]
[328074381,1716837045866,-500.0,0.00030136,6]
[328074382,1716837045875,-500.0,0.00030136,6]
[328074383,1716837045885,-432.26992484,0.00030136,6]
[328074384,1716837045896,-67.73007516,0.00030136,6]
[328074385,1716837045906,-500.0,0.00030136,6]
[328074386,1716837045915,-500.0,0.00030136,6]
[328074387,1716837045924,-500.0,0.00030136,6]
[328074388,1716837045934,-500.0,0.00030136,6]
[328074389,1716837045943,-500.0,0.00030136,6]
[328074390,1716837045952,-500.0,0.00030136,6]
[328074391,1716837045962,-372.17,0.00030136,6]
[328074392,1716837045972,-500.0,0.00030136,6]
[328074393,1716837045982,-500.0,0.00030136,6]
[328074394,1716837045991,-500.0,0.00030136,6]
[328074395,1716837046001,-500.0,0.00030136,6]
[328074396,1716837046011,-479.96871806,0.00030136,6]
[328074397,1716837046031,-20.03128194,0.00030136,6]
[328074398,1716837046040,-500.0,0.00030136,6]
[328074399,1716837046050,-500.0,0.00030136,6]
[328074400,1716837046059,-500.0,0.00030136,6]
[328074402,1716837046069,-500.0,0.00030136,6]
[328074404,1716837046078,-500.0,0.00030136,6]
[328074405,1716837046088,-500.0,0.00030136,6]
[328074406,1716837046097,-500.0,0.00030136,6]
[328074407,1716837046107,-500.0,0.00030136,6]
[328074408,1716837046116,-500.0,0.00030136,6]
[328074409,1716837046125,-500.0,0.00030136,6]
[328074410,1716837046134,-500.0,0.00030136,6]
[328074411,1716837046143,-448.5,0.00030136,6]
[328074412,1716837046154,-449.41,0.00030136,6]
[328074413,1716837046163,-500.0,0.00030136,6]
[328074414,1716837046172,-500.0,0.00030136,6]
[328074415,1716837046181,-500.0,0.00030136,6]
[328074416,1716837046191,-500.0,0.00030136,6]
[328074417,1716837046200,-500.0,0.00030136,6]
[328074418,1716837046210,-375.23,0.00030136,6]
[328074419,1716837046220,-500.0,0.00030136,6]
[328074420,1716837046230,-500.0,0.00030136,6]
[328074421,1716837046239,-500.0,0.00030136,6]
[328074422,1716837046248,-500.0,0.00030136,6]
[328074423,1716837046257,-500.0,0.00030136,6]
[328074424,1716837046266,-500.0,0.00030136,6]
[328074425,1716837046275,-500.0,0.00030136,6]
[328074426,1716837046284,-500.0,0.00030136,6]
[328074427,1716837046293,-500.0,0.00030136,6]
[328074428,1716837046303,-500.0,0.00030136,6]
[328074429,1716837046313,-500.0,0.00030136,6]
[328074430,1716837046322,-545.60401211,0.00030136,6]
[328074431,1716837046331,-561.05,0.00030136,6]
[328074432,1716837046340,-500.0,0.00030136,6]
[328074433,1716837046350,-500.0,0.00030136,6]
[328074434,1716837046359,-516.97,0.00030136,6]
[328074435,1716837046368,-500.0,0.00030136,6]
[328074436,1716837046378,-500.0,0.00030136,6]
[328074437,1716837046389,-611.73812707,0.00030136,6]
[328074438,1716837046399,-500.0,0.00030136,6]
[328074439,1716837046410,-500.0,0.00030136,6]
[328074440,1716837046419,-500.0,0.00030136,6]
[328074441,1716837046430,-606.73,0.00030136,6]
[328074442,1716837046439,-204.88419,0.00030136,7]
[328074443,1716837046449,-500.0,0.00030136,6]
[328074444,1716837046463,-500.0,0.00030136,6]
[328074445,1716837046472,-500.0,0.00030136,6]
[328074446,1716837046483,-500.0,0.00030136,6]
[328074447,1716837046492,-500.0,0.00030136,6]
[328074448,1716837046502,-500.0,0.00030136,6]
[328074449,1716837046511,-500.0,0.00030136,6]
[328074450,1716837046520,-500.0,0.00030136,6]
[328074451,1716837046530,-500.0,0.00030136,6]
[328074452,1716837046540,-216.45,0.00030136,6]
[328074453,1716837046550,-500.0,0.00030136,6]
[328074454,1716837046559,-500.0,0.00030136,6]
[328074455,1716837046568,-500.0,0.00030136,6]
[328074456,1716837046577,-500.0,0.00030136,6]
[328074457,1716837046586,-500.0,0.00030136,2]
[328074458,1716837046595,-500.0,0.00030136,6]
[328074459,1716837046604,-500.0,0.00030136,2]
[328074460,1716837046614,-500.0,0.00030136,6]
[328074461,1716837046623,-500.0,0.00030136,2]
[328074462,1716837046633,-500.0,0.00030136,6]
[328074463,1716837046642,-500.0,0.00030136,6]
[328074464,1716837046651,-500.0,0.00030136,2]
[328074465,1716837046661,-500.0,0.00030136,6]
[328074466,1716837046670,-180.5631153,0.00030136,6]
[328074467,1716837046781,-319.4368847,0.00030136,6]
[328074468,1716837046791,-307.36546285,0.00030136,2]
[328074469,1716837047025,-192.63453715,0.00030136,2]
[328074470,1716837047035,-603.32,0.00030136,6]
[328074471,1716837047044,-500.0,0.00030136,2]
[328074472,1716837047054,-43.14311359,0.00030136,6]
[328074473,1716837047066,-456.85688641,0.00030136,6]
[328074474,1716837047076,-500.0,0.00030136,6]
[328074475,1716837047085,-500.0,0.00030136,6]
[328074476,1716837047095,-500.0,0.00030136,6]
[328074477,1716837047105,-500.0,0.00030136,6]
[328074478,1716837047114,-500.0,0.00030136,6]
[328074479,1716837047123,-500.0,0.00030136,6]
[328074480,1716837047133,-500.0,0.00030136,6]
[328074481,1716837047143,-500.0,0.00030136,6]
[328074482,1716837047152,-500.0,0.00030136,6]
[328074483,1716837047161,-646.63685095,0.00030136,6]
[328074484,1716837047170,-500.0,0.00030136,6]
[328074485,1716837047180,-228.6,0.00030136,6]
[328074486,1716837047189,-229.4444956,0.00030136,6]
[328074487,1716837047202,-111.9704902,0.00030136,6]
[328074488,1716837047212,-500.0,0.00030136,6]
[328074489,1716837047222,-368.1545098,0.00030136,6]
[328074490,1716837047236,-131.8454902,0.00030136,6]
[328074491,1716837047245,-500.0,0.00030136,6]
[328074492,1716837047254,-500.0,0.00030136,6]
[328074493,1716837047264,-472.56,0.00030136,6]
[328074494,1716837047273,-500.0,0.00030136,6]
[328074495,1716837047283,-500.0,0.00030136,6]
[328074496,1716837047292,-339.64937478,0.00030136,6]
[328074497,1716837047304,-160.35062522,0.00030136,6]
[328074498,1716837047314,-500.0,0.00030136,6]
[328074499,1716837047323,-500.0,0.00030136,6]
[328074500,1716837047333,-208.31937478,0.00030136,6]
[328074501,1716837047345,-291.68062522,0.00030136,6]
[328074502,1716837047355,-500.0,0.00030136,6]
[328074503,1716837047364,-500.0,0.00030136,6]
[328074504,1716837047373,-394.89167536,0.00030136,6]
[328074505,1716837047385,-105.10832464,0.00030136,6]
[328074506,1716837047395,-386.00357235,0.00030136,6]
[328074507,1716837047404,-500.0,0.00030136,6]
[328074508,1716837047413,-500.0,0.00030136,6]
[328074509,1716837047422,-609.58,0.00030136,6]
[328074510,1716837047436,-519.87,0.00030136,6]
[328074511,1716837047445,-500.0,0.00030136,6]
[328074512,1716837047455,-500.0,0.00030136,6]
[328074513,1716837047464,-500.0,0.00030136,6]
[328074514,1716837047474,-301.95767645,0.00030136,6]
[328074515,1716837047487,-500.0,0.00030136,6]
[328074516,1716837047497,-500.0,0.00030136,6]
[328074517,1716837047506,-500.0,0.00030136,6]
[328074518,1716837047515,-500.0,0.00030136,6]
[328074519,1716837047528,-338.5312821,0.00030136,6]
[328074531,1716837552692,153.78,0.00013973,2]
[328074540,1716838006258,158.12,0.00013973,2]
[328074543,1716838050088,-155.0,0.0001603,2]
[328074544,1716838050108,-207.68481449,0.0001603,2]
[328074545,1716838050129,-410.29115714,0.00016031,2]
[328074546,1716838050151,-234.51666684,0.00016031,2]
[328074547,1716838050172,-155.0,0.00016032,2]
[328074548,1716838050194,-322.1296119,0.00016033,2]
[328074549,1716838050216,-978.30056291,0.00016033,2]
[328074554,1716838232226,-155.0,0.00015854,2]
[328074555,1716838232235,-155.0,0.00015855,2]
[328074557,1716838232245,-406.54724028,0.00015856,2]
[328074559,1716838232254,-583.53277369,0.00015856,2]
[328074560,1716838232266,-666.52923316,0.00015856,2]
[328074561,1716838232275,-155.0,0.00015857,2]
[328074562,1716838232284,-155.0,0.00015857,2]
[328074563,1716838232293,-687.05440873,0.00015858,2]
[328074564,1716838232302,-157.93299216,0.00015858,2]
[328074565,1716838232311,-155.0,0.00015859,2]
[328074566,1716838232320,-155.0,0.0001586,2]
[328074567,1716838232329,-168.09348765,0.0001586,2]
[328074568,1716838232338,-402.469679,0.00015861,2]
[328074569,1716838232347,-800.41995931,0.0001594,2]
[328074570,1716838232358,-569.62382123,0.0001594,2]
[328074571,1716838232370,-599.72,0.0001594,2]
[328074572,1716838232487,-893.88077685,0.0001594,2]
[328074573,1716838232499,-463.7839458,0.0001594,2]
[328074574,1716838232510,-350.63988,0.0001594,2]
[328074575,1716838232523,-756.20455668,0.0001594,2]
[328074576,1716838232532,-150.0,0.0001594,2]
[328074577,1716838232541,-774.92059834,0.00015941,2]
[328074578,1716838232550,-2026.68951967,0.00016033,2]
[328074579,1716838232562,-4520.09325557,0.00016033,2]
[328074580,1716838232571,-499.99,0.00016115,2]
[328074581,1716838232582,-299.99,0.00016118,4]
[328074582,1716838232592,-181.85,0.000163,2]
[328074583,1716838232602,-165.29677643,0.00016487,2]
[328074584,1716838232611,-1228.26740172,0.00017053,2]
[328074585,1716838232620,-2720.05291966,0.00017054,2]
[328074586,1716838232630,-1403.38,0.00017144,6]
[328074587,1716838232639,-165.29677628,0.00017151,2]
[328074588,1716838232648,-3511.19556864,0.00017258,2]
[328074589,1716838232658,-165.29677628,0.00017814,2]
[328074590,1716838232667,-2132.50750441,0.00018,2]
[328074591,1716838232677,-165.29677628,0.00018478,2]
[328074592,1716838232686,-165.29677628,0.00019142,2]
[328074593,1716838232696,-910.97624141,0.000192,2]
[328074594,1716838232708,-336.63192,0.000192,2]
[328074595,1716838232719,-406.17547632,0.000192,2]
[328074596,1716838232777,-301.95752848,0.000192,2]
[328074607,1716838238554,-1928.75249062,0.000192,2]
[328074608,1716838238564,-27.24750938,0.00019806,2]
[328074609,1716838238577,-138.0492669,0.00019806,2]
[328074610,1716838238586,-445.48491364,0.0002,2]
[328074611,1716838238596,-165.29677628,0.00020469,2]
[328074612,1716838238606,-192.14,0.00020645,2]
[328074613,1716838238616,-165.29677628,0.00021133,2]
[328074614,1716838238631,-165.29677628,0.00021797,2]
[328074615,1716838238642,-155.2,0.00021881,2]
[328074616,1716838238652,-200.0,0.00022262,2]
[328074617,1716838238662,-718.77,0.00022306,2]
[328074618,1716838238672,-165.29677628,0.00022461,2]
[328074619,1716838238683,-190.95,0.00022526,2]
[328074620,1716838238693,-250.0,0.00022536,2]
[328074621,1716838238703,-227.07,0.00022548,2]
[328074622,1716838238714,-250.0,0.00022553,2]
[328074623,1716838238724,-250.0,0.00022609,2]
[328074624,1716838238734,-609.92560384,0.00022684,2]
[328074625,1716838238882,-286.54,0.00022684,2]
[328074626,1716838238896,-1338.54439616,0.00022684,2]
[328074627,1716838238906,-272.15,0.00022723,2]
[328074628,1716838238917,-1382.04,0.00022777,2]
[328074629,1716838238927,-200.0,0.00022821,2]
[328074630,1716838238938,-6159.33,0.00022853,2]
[328074631,1716838238947,-952.77,0.00022902,2]
[328074632,1716838238958,-192.14,0.00022909,2]
[328074633,1716838238968,-1852.42,0.00023,2]
[328074634,1716838238977,-155.82,0.00023025,2]
[328074635,1716838238989,-240.0,0.00023068,2]
[328074636,1716838238999,-165.29677628,0.00023124,2]
[328074637,1716838239009,-168.44,0.0002324,2]
[328074638,1716838239019,-166.72,0.00023414,2]
[328074639,1716838239030,-165.29677628,0.00023788,2]
[328074640,1716838239041,-153.76513485,0.00024444,2]
[328074641,1716838239051,-165.29677628,0.00024452,2]
[328074642,1716838239062,-1050.0,0.00025,2]
[328074643,1716838239072,-165.29677628,0.00025116,2]
[328074644,1716838239083,-192.14,0.00025173,2]
[328074645,1716838239093,-151.83882976,0.00025246,2]
[328074647,1716838239103,-166.66666667,0.00025261,2]
[328074648,1716838239112,-173.16,0.00025328,2]
[328074650,1716838239122,-153.20203222,0.00025386,2]
[328074651,1716838239133,-2235.01,0.00025423,2]
[328074652,1716838239142,-155.2,0.00025528,2]
[328074653,1716838239153,-952.77,0.00025765,2]
[328074654,1716838239163,-189.60347307,0.00025777,2]
[328074655,1716838239174,-165.29677628,0.00025779,2]
[328074656,1716838239184,-189.60347307,0.00026098,2]
[328074657,1716838239194,-234.51666684,0.00026442,2]
[328074658,1716838239203,-165.29677628,0.00026443,2]
[328074659,1716838239214,-150.0,0.00026447,2]
[328074660,1716838239224,-150.0,0.00026657,2]
[328074661,1716838239235,-1100.0,0.00027,2]
[328074663,1716838239246,-165.29677628,0.00027107,2]
[328074665,1716838239257,-150.0,0.00027355,2]
[328074667,1716838239268,-150.0,0.00027403,2]
[328074669,1716838239280,-192.14,0.00027437,2]
[328074671,1716838239293,-189.60347308,0.00027691,2]
[328074673,1716838239303,-150.0,0.00027731,2]
[328074675,1716838239314,-165.29677628,0.00027771,2]
[328074677,1716838239332,-500.0,0.00028102,2]
[328074679,1716838239343,-500.0,0.00028102,2]
[328074682,1716838239353,-2235.01,0.00028163,2]
[328074684,1716838239364,-153.20203222,0.00028404,2]
[328074686,1716838239375,-165.29677628,0.00028434,2]
[328074688,1716838239387,-153.20203222,0.00028577,2]
[328074690,1716838239397,-150.0,0.00028623,2]
[328074692,1716838239408,-952.77,0.00028628,2]
[328074694,1716838239420,-956.39580577,0.00028629,2]
[328074696,1716838239430,-150.0,0.0002864,2]
[328074698,1716838239441,-165.29677628,0.00029098,2]
[328074700,1716838239451,-173.92745171,0.00029098,2]
[328074702,1716838239460,-1073.71553518,0.00029098,2]
[328074704,1716838239471,-1143.18878427,0.00029098,2]
[328074706,1716838239480,-310.020761,0.00029098,2]
[328074708,1716838239490,-281.08887083,0.00029098,2]
[328074710,1716838239499,-155.2,0.00029175,2]
[328074712,1716838239509,-417.51737442,0.00029185,2]
[328074714,1716838239519,-195.3761054,0.00029185,2]
[328074716,1716838239532,-340.7156499,0.00029185,2]
[328074718,1716838239540,-156.15341788,0.00029185,2]
[328074720,1716838239550,-157.28361957,0.00029185,2]
[328074722,1716838239561,-464.41379835,0.00029187,2]
[328074724,1716838239572,-464.41379835,0.00029187,2]
[328074726,1716838239583,-464.41379835,0.00029187,2]
[328074728,1716838239595,-464.41379835,0.00029187,2]
[328074730,1716838239606,-464.41379835,0.00029187,2]
[328074732,1716838239617,-464.41379835,0.00029187,2]
[328074734,1716838239628,-464.41379835,0.00029187,2]
[328074736,1716838239639,-464.41379835,0.00029187,2]
[328074738,1716838239650,-464.41379835,0.00029187,2]
[328074740,1716838239660,-464.41379835,0.00029187,2]
[328074743,1716838239672,-464.41379835,0.00029187,2]
[328074745,1716838239683,-464.41379835,0.00029187,2]
[328074747,1716838239694,-464.41379835,0.00029187,2]
[328074748,1716838239705,-464.41379835,0.00029187,2]
[328074750,1716838239715,-464.41379835,0.00029187,2]
[328074752,1716838239726,-464.41379835,0.00029187,2]
[328074755,1716838239737,-464.41379835,0.00029187,2]
[328074757,1716838239749,-464.41379835,0.00029187,2]
[328074758,1716838239760,-464.41379835,0.00029187,2]
[328074760,1716838239771,-464.41379835,0.00029187,2]
[328074762,1716838239782,-464.41379835,0.00029187,2]
[328074764,1716838239792,-464.41379835,0.00029187,2]
[328074765,1716838239803,-464.41379835,0.00029187,2]
[328074766,1716838239815,-464.41379835,0.00029187,2]
[328074767,1716838239828,-464.41379835,0.00029187,2]
[328074768,1716838239839,-464.41379835,0.00029187,2]
[328074769,1716838239849,-464.41379835,0.00029187,2]
[328074770,1716838239860,-464.41379835,0.00029187,2]
[328074771,1716838239871,-464.41379835,0.00029187,2]
[328074772,1716838239883,-464.41379835,0.00029187,2]
[328074773,1716838239894,-464.41379835,0.00029187,2]
[328074774,1716838239906,-464.41379835,0.00029187,2]
[328074775,1716838239917,-464.41379835,0.00029187,2]
[328074776,1716838239927,-464.41379835,0.00029187,2]
[328074777,1716838239937,-464.41379835,0.00029187,2]
[328074778,1716838239947,-464.41379835,0.00029187,2]
[328074779,1716838239958,-464.41379835,0.00029187,2]
[328074780,1716838239968,-464.41379835,0.00029187,2]
[328074781,1716838239978,-464.41379835,0.00029187,2]
[328074782,1716838239988,-464.41379835,0.00029187,2]
[328074783,1716838239999,-464.41379835,0.00029187,2]
[328074784,1716838240009,-464.41379835,0.00029187,2]
[328074785,1716838240019,-464.41379835,0.00029187,2]
[328074786,1716838240031,-464.41379835,0.00029187,2]
[328074787,1716838240041,-464.41379835,0.00029187,2]
[328074788,1716838240051,-464.41379835,0.00029187,2]
[328074789,1716838240061,-464.41379835,0.00029187,2]